[Event "Titled Tuesday Blitz August 17 2021"]
[White "Timofeev, Artyom"]
[Black "Quinones Garcia, Santiago"]
[WhiteFideId "4140419"]
[BlackFideId "4408497"]
[WhiteElo "2582"]
[BlackElo "2187"]
[Result "1-0"]
[Round "02"]
[TimeControl "180+1"]
[Date "2021.08.18"]
[WhiteClock "0:00:26"]
[BlackClock "0:00:01"]

1. c4 {[%clk 0:03:00]}  Nf6 {[%clk 0:02:54]} 2. Nc3 {[%clk 0:03:00]}  e5 {[%clk 0:02:53]} 3. e3 {[%clk 0:02:59]}  Nc6 {[%clk 0:02:52]} 4. d3 {[%clk 0:02:59]}  Be7 {[%clk 0:02:50]} 5. Nf3 {[%clk 0:02:58]}  O-O {[%clk 0:02:51]} 6. Be2 {[%clk 0:02:58]}  d5 {[%clk 0:02:50]} 7. cxd5 {[%clk 0:02:58]}  Nxd5 {[%clk 0:02:50]} 8. O-O {[%clk 0:02:58]}  Be6 {[%clk 0:02:49]} 9. a3 {[%clk 0:02:58]}  a5 {[%clk 0:02:48]} 10. Qc2 {[%clk 0:02:56]}  f6 {[%clk 0:02:32]} 11. b3 {[%clk 0:02:50]}  Nxc3 {[%clk 0:02:20]} 12. Qxc3 {[%clk 0:02:48]}  Qd5 {[%clk 0:02:21]} 13. Nd2 {[%clk 0:02:42]}  Qc5 {[%clk 0:02:14]} 14. Qxc5 {[%clk 0:02:36]}  Bxc5 {[%clk 0:02:15]} 15. Bb2 {[%clk 0:02:36]}  Ne7 {[%clk 0:02:08]} 16. Rfc1 {[%clk 0:02:34]}  Bb6 {[%clk 0:02:08]} 17. Nc4 {[%clk 0:02:33]}  Bxc4 {[%clk 0:02:01]} 18. Rxc4 {[%clk 0:02:32]}  c6 {[%clk 0:02:01]} 19. g3 {[%clk 0:02:22]}  Rfd8 {[%clk 0:01:59]} 20. Rd1 {[%clk 0:02:15]}  Rd7 {[%clk 0:01:56]} 21. b4 {[%clk 0:02:10]}  Rad8 {[%clk 0:01:54]} 22. Rb1 {[%clk 0:02:08]}  axb4 {[%clk 0:01:50]} 23. Rxb4 {[%clk 0:02:07]}  Bc5 {[%clk 0:01:40]} 24. Rb3 {[%clk 0:02:07]}  Ra8 {[%clk 0:01:36]} 25. Rc1 {[%clk 0:02:07]}  Bd6 {[%clk 0:01:34]} 26. Bg4 {[%clk 0:02:03]}  Rc7 {[%clk 0:01:33]} 27. d4 {[%clk 0:01:56]}  exd4 {[%clk 0:01:30]} 28. Bxd4 {[%clk 0:01:56]}  b5 {[%clk 0:01:29]} 29. Bb2 {[%clk 0:01:43]}  Rca7 {[%clk 0:01:28]} 30. Bf3 {[%clk 0:01:36]}  Bxa3 {[%clk 0:01:24]} 31. Bxc6 {[%clk 0:01:30]}  Nxc6 {[%clk 0:00:57]} 32. Rxc6 {[%clk 0:01:29]}  Bxb2 {[%clk 0:00:58]} 33. Rxb2 {[%clk 0:01:29]}  Rb7 {[%clk 0:00:57]} 34. Rb4 {[%clk 0:01:25]}  Ra4 {[%clk 0:00:47]} 35. Rb3 {[%clk 0:01:25]}  Ra8 {[%clk 0:00:35]} 36. Kg2 {[%clk 0:01:23]}  Kf7 {[%clk 0:00:35]} 37. h4 {[%clk 0:01:22]}  b4 {[%clk 0:00:34]} 38. h5 {[%clk 0:01:19]}  Ra3 {[%clk 0:00:26]} 39. Rb2 {[%clk 0:01:19]}  Ra5 {[%clk 0:00:20]} 40. g4 {[%clk 0:01:16]}  b3 {[%clk 0:00:20]} 41. Rc3 {[%clk 0:01:16]}  Rab5 {[%clk 0:00:19]} 42. Kg3 {[%clk 0:01:17]}  Ke6 {[%clk 0:00:19]} 43. f4 {[%clk 0:01:16]}  R5b6 {[%clk 0:00:19]} 44. Kf3 {[%clk 0:01:16]}  Kf7 {[%clk 0:00:19]} 45. Rc5 {[%clk 0:01:13]}  Ra6 {[%clk 0:00:18]} 46. Rc3 {[%clk 0:01:12]}  Rab6 {[%clk 0:00:19]} 47. g5 {[%clk 0:01:09]}  fxg5 {[%clk 0:00:19]} 48. fxg5 {[%clk 0:01:10]}  Rb5 {[%clk 0:00:19]} 49. Kf4 {[%clk 0:01:09]}  Rb4+ {[%clk 0:00:19]} 50. e4 {[%clk 0:01:09]}  R4b5 {[%clk 0:00:19]} 51. Rc6 {[%clk 0:01:06]}  Ra5 {[%clk 0:00:19]} 52. g6+ {[%clk 0:01:05]}  hxg6 {[%clk 0:00:20]} 53. hxg6+ {[%clk 0:01:05]}  Ke7 {[%clk 0:00:20]} 54. Rc3 {[%clk 0:01:04]}  Rab5 {[%clk 0:00:20]} 55. e5 {[%clk 0:01:02]}  R5b6 {[%clk 0:00:20]} 56. Kf5 {[%clk 0:01:00]}  Rb5 {[%clk 0:00:19]} 57. Rh3 {[%clk 0:00:59]}  R5b6 {[%clk 0:00:11]} 58. Rh7 {[%clk 0:00:58]}  Kf8 {[%clk 0:00:10]} 59. Rh8+ {[%clk 0:00:58]}  Ke7 {[%clk 0:00:10]} 60. Rg8 {[%clk 0:00:59]}  Rb8 {[%clk 0:00:03]} 61. Rxg7+ {[%clk 0:00:58]}  Kf8 {[%clk 0:00:03]} 62. Rh7 {[%clk 0:00:52]}  Kg8 {[%clk 0:00:02]} 63. Rf7 {[%clk 0:00:52]}  Ra6 {[%clk 0:00:02]} 64. e6 {[%clk 0:00:40]}  Ra2 {[%clk 0:00:02]} 65. Rb1 {[%clk 0:00:40]}  b2 {[%clk 0:00:02]} 66. e7 {[%clk 0:00:40]}  Ra5+ {[%clk 0:00:02]} 67. Ke4 {[%clk 0:00:37]}  Ra6 {[%clk 0:00:02]} 68. Rxb2 {[%clk 0:00:31]}  Re8 {[%clk 0:00:01]} 69. Kf5 {[%clk 0:00:26]} 1-0


[Site "https://www.chess.com"]

[Event "Titled Tuesday Blitz August 17 2021"]
[White "Tristan, Leonardo"]
[Black "Pourkashiyan, Atousa"]
[WhiteFideId "113816"]
[BlackFideId "12502014"]
[WhiteElo "2404"]
[BlackElo "2285"]
[Result "1-0"]
[Round "02"]
[TimeControl "180+1"]
[Date "2021.08.17"]
[WhiteClock "0:00:53"]
[BlackClock "0:00:11"]

1. d4 {[%clk 0:03:00]}  Nf6 {[%clk 0:02:57]} 2. Nf3 {[%clk 0:03:00]}  d5 {[%clk 0:02:56]} 3. Bf4 {[%clk 0:03:00]}  e6 {[%clk 0:02:54]} 4. e3 {[%clk 0:03:01]}  Bd6 {[%clk 0:02:51]} 5. Bg3 {[%clk 0:03:01]}  c5 {[%clk 0:02:48]} 6. Bb5+ {[%clk 0:03:00]}  Nc6 {[%clk 0:02:44]} 7. Nbd2 {[%clk 0:03:01]}  O-O {[%clk 0:02:41]} 8. c3 {[%clk 0:03:00]}  a6 {[%clk 0:02:16]} 9. Bxc6 {[%clk 0:03:00]}  bxc6 {[%clk 0:02:13]} 10. Qa4 {[%clk 0:03:00]}  Bb7 {[%clk 0:01:58]} 11. Qa3 {[%clk 0:02:50]}  Bxg3 {[%clk 0:01:48]} 12. hxg3 {[%clk 0:02:48]}  c4 {[%clk 0:01:35]} 13. b3 {[%clk 0:02:45]}  cxb3 {[%clk 0:01:32]} 14. Nxb3 {[%clk 0:02:45]}  a5 {[%clk 0:01:28]} 15. O-O {[%clk 0:02:31]}  Ne4 {[%clk 0:01:24]} 16. Nc5 {[%clk 0:02:20]}  Ba6 {[%clk 0:01:21]} 17. Rfb1 {[%clk 0:02:08]}  Qe7 {[%clk 0:01:13]} 18. Rb6 {[%clk 0:01:53]}  Bb5 {[%clk 0:01:09]} 19. Rb7 {[%clk 0:01:45]}  Qd6 {[%clk 0:01:09]} 20. Rd7 {[%clk 0:01:31]}  Qb8 {[%clk 0:01:03]} 21. Nxe4 {[%clk 0:01:30]}  dxe4 {[%clk 0:01:04]} 22. Ne5 {[%clk 0:01:30]}  c5 {[%clk 0:00:58]} 23. Rb1 {[%clk 0:01:30]}  cxd4 {[%clk 0:00:50]} 24. cxd4 {[%clk 0:01:24]}  Ra6 {[%clk 0:00:49]} 25. Qe7 {[%clk 0:00:54]}  Rb6 {[%clk 0:00:45]} 26. Rxb5 {[%clk 0:00:54]}  Rxb5 {[%clk 0:00:44]} 27. Nxf7 {[%clk 0:00:55]}  Rh5 {[%clk 0:00:11]} 28. Nh6+ {[%clk 0:00:53]} 1-0


[Site "https://www.chess.com"]

[Event "Titled Tuesday Blitz August 17 2021"]
[White "Tsyhanchuk, Stanislav"]
[Black "Maghsoodloo, Parham"]
[WhiteFideId "13505130"]
[BlackFideId "12539929"]
[WhiteElo "2121"]
[BlackElo "2601"]
[Result "0-1"]
[Round "02"]
[TimeControl "180+1"]
[Date "2021.08.18"]
[WhiteClock "0:00:04"]
[BlackClock "0:00:04"]

1. e4 {[%clk 0:03:00]}  c5 {[%clk 0:01:34]} 2. Nf3 {[%clk 0:03:00]}  Nc6 {[%clk 0:01:34]} 3. d4 {[%clk 0:03:00]}  cxd4 {[%clk 0:01:34]} 4. Nxd4 {[%clk 0:03:01]}  e6 {[%clk 0:01:35]} 5. Nc3 {[%clk 0:03:01]}  a6 {[%clk 0:01:35]} 6. Be3 {[%clk 0:02:54]}  Qc7 {[%clk 0:01:34]} 7. Bd3 {[%clk 0:02:54]}  Nf6 {[%clk 0:01:34]} 8. O-O {[%clk 0:02:54]}  h5 {[%clk 0:01:33]} 9. h3 {[%clk 0:02:34]}  b5 {[%clk 0:01:23]} 10. Nxc6 {[%clk 0:02:31]}  dxc6 {[%clk 0:01:21]} 11. a4 {[%clk 0:02:31]}  b4 {[%clk 0:01:09]} 12. Nb1 {[%clk 0:02:31]}  e5 {[%clk 0:01:06]} 13. Nd2 {[%clk 0:02:29]}  Be6 {[%clk 0:01:06]} 14. b3 {[%clk 0:02:27]}  a5 {[%clk 0:01:01]} 15. Qe2 {[%clk 0:02:20]}  Be7 {[%clk 0:01:00]} 16. Kh1 {[%clk 0:02:15]}  O-O {[%clk 0:00:59]} 17. f4 {[%clk 0:02:14]}  h4 {[%clk 0:00:15]} 18. f5 {[%clk 0:02:11]}  Bc8 {[%clk 0:00:15]} 19. Bg5 {[%clk 0:01:10]}  Nh7 {[%clk 0:00:15]} 20. Be3 {[%clk 0:00:55]}  Rd8 {[%clk 0:00:14]} 21. Qh5 {[%clk 0:00:38]}  Ba6 {[%clk 0:00:14]} 22. Nc4 {[%clk 0:00:32]}  c5 {[%clk 0:00:10]} 23. Qg4 {[%clk 0:00:24]}  Bb7 {[%clk 0:00:09]} 24. Bh6 {[%clk 0:00:21]}  Bf8 {[%clk 0:00:08]} 25. Bg5 {[%clk 0:00:17]}  Nxg5 {[%clk 0:00:06]} 26. Qxg5 {[%clk 0:00:18]}  Ra6 {[%clk 0:00:05]} 27. f6 {[%clk 0:00:08]}  g6 {[%clk 0:00:05]} 28. Qxh4 {[%clk 0:00:08]}  Rd4 {[%clk 0:00:05]} 29. Ne3 {[%clk 0:00:03]}  Re6 {[%clk 0:00:05]} 30. Bc4 {[%clk 0:00:03]}  Rxe4 {[%clk 0:00:06]} 31. Qg5 {[%clk 0:00:02]}  Rxc4 {[%clk 0:00:06]} 32. Nxc4 {[%clk 0:00:02]}  e4 {[%clk 0:00:06]} 33. Ne3 {[%clk 0:00:02]}  Re5 {[%clk 0:00:05]} 34. Qf4 {[%clk 0:00:02]}  Bd6 {[%clk 0:00:03]} 35. Ng4 {[%clk 0:00:02]}  Rh5 {[%clk 0:00:03]} 36. Qe3 {[%clk 0:00:02]}  c4 {[%clk 0:00:03]} 37. bxc4 {[%clk 0:00:02]}  Bc5 {[%clk 0:00:04]} 38. Rad1 {[%clk 0:00:03]}  Bxe3 {[%clk 0:00:04]} 39. Nxe3 {[%clk 0:00:04]}  Qc5 {[%clk 0:00:03]} 40. Nd5 {[%clk 0:00:03]}  e3 {[%clk 0:00:04]} 41. Rde1 {[%clk 0:00:03]}  Qxc4 {[%clk 0:00:04]} 42. Nxe3 {[%clk 0:00:02]}  Rxh3+ {[%clk 0:00:04]} 43. Kg1 {[%clk 0:00:02]}  Rxe3 {[%clk 0:00:04]} 44. Rf2 {[%clk 0:00:03]}  Rxe1+ {[%clk 0:00:04]} 45. Kh2 {[%clk 0:00:04]}  Qh4# {[%clk 0:00:04]} 0-1


[Site "https://www.chess.com"]

[Event "Titled Tuesday Blitz August 17 2021"]
[White "Wagh Suyog"]
[Black "Babiy, Olga"]
[WhiteFideId "25071688"]
[BlackFideId "14117258"]
[WhiteElo "2219"]
[BlackElo "2253"]
[Result "1-0"]
[Round "02"]
[TimeControl "180+1"]
[Date "2021.08.17"]
[WhiteClock "0:00:13"]
[BlackClock "0:00:01"]

1. e4 {[%clk 0:03:00]}  c5 {[%clk 0:02:54]} 2. Nf3 {[%clk 0:02:59]}  e6 {[%clk 0:02:55]} 3. c4 {[%clk 0:02:59]}  Nc6 {[%clk 0:02:54]} 4. Nc3 {[%clk 0:02:59]}  Nd4 {[%clk 0:02:47]} 5. Nxd4 {[%clk 0:02:56]}  cxd4 {[%clk 0:02:48]} 6. Ne2 {[%clk 0:02:57]}  e5 {[%clk 0:02:46]} 7. d3 {[%clk 0:02:57]}  Nf6 {[%clk 0:02:44]} 8. g3 {[%clk 0:02:57]}  Bb4+ {[%clk 0:02:36]} 9. Bd2 {[%clk 0:02:57]}  Qa5 {[%clk 0:02:30]} 10. Bxb4 {[%clk 0:02:37]}  Qxb4+ {[%clk 0:02:31]} 11. Qd2 {[%clk 0:02:38]}  a5 {[%clk 0:02:12]} 12. Bg2 {[%clk 0:02:37]}  d6 {[%clk 0:02:08]} 13. a3 {[%clk 0:02:33]}  Qb6 {[%clk 0:01:59]} 14. O-O {[%clk 0:02:31]}  a4 {[%clk 0:02:00]} 15. h3 {[%clk 0:02:31]}  Nd7 {[%clk 0:01:57]} 16. f4 {[%clk 0:02:30]}  Nc5 {[%clk 0:01:56]} 17. Rad1 {[%clk 0:02:25]}  f6 {[%clk 0:01:49]} 18. g4 {[%clk 0:02:21]}  Be6 {[%clk 0:01:39]} 19. Ng3 {[%clk 0:02:05]}  exf4 {[%clk 0:01:26]} 20. Rxf4 {[%clk 0:02:02]}  O-O {[%clk 0:01:19]} 21. Kh2 {[%clk 0:02:00]}  Qb3 {[%clk 0:01:19]} 22. Ne2 {[%clk 0:01:54]}  Qb6 {[%clk 0:01:02]} 23. Nxd4 {[%clk 0:01:53]}  Bf7 {[%clk 0:00:54]} 24. Nf5 {[%clk 0:01:49]}  Nb3 {[%clk 0:00:44]} 25. Qf2 {[%clk 0:01:44]}  Qc7 {[%clk 0:00:35]} 26. Kh1 {[%clk 0:01:42]}  Ra5 {[%clk 0:00:25]} 27. Rf1 {[%clk 0:01:40]}  Be6 {[%clk 0:00:20]} 28. Ne3 {[%clk 0:01:40]}  Qf7 {[%clk 0:00:15]} 29. Nd1 {[%clk 0:01:39]}  Nc5 {[%clk 0:00:13]} 30. Rf3 {[%clk 0:01:36]}  Qe7 {[%clk 0:00:12]} 31. Nc3 {[%clk 0:01:35]}  Raa8 {[%clk 0:00:11]} 32. Rg3 {[%clk 0:01:23]}  h6 {[%clk 0:00:11]} 33. Kh2 {[%clk 0:01:22]}  Nd7 {[%clk 0:00:11]} 34. Bf3 {[%clk 0:01:09]}  Ne5 {[%clk 0:00:11]} 35. Bd1 {[%clk 0:01:10]}  Qc7 {[%clk 0:00:11]} 36. Bxa4 {[%clk 0:01:03]}  Nxd3 {[%clk 0:00:06]} 37. Rxd3 {[%clk 0:01:02]}  Bxc4 {[%clk 0:00:07]} 38. Nd5 {[%clk 0:00:48]}  Qf7 {[%clk 0:00:03]} 39. Qd2 {[%clk 0:00:32]}  Bxd3 {[%clk 0:00:03]} 40. Rc1 {[%clk 0:00:30]}  Rxa4 {[%clk 0:00:02]} 41. Qxd3 {[%clk 0:00:30]}  Raa8 {[%clk 0:00:02]} 42. Rc7 {[%clk 0:00:29]}  Qe8 {[%clk 0:00:02]} 43. Ne7+ {[%clk 0:00:28]}  Kh8 {[%clk 0:00:02]} 44. e5 {[%clk 0:00:29]}  Rf7 {[%clk 0:00:02]} 45. exd6 {[%clk 0:00:28]}  Rd8 {[%clk 0:00:02]} 46. Qd5 {[%clk 0:00:21]}  Kh7 {[%clk 0:00:01]} 47. Qf5+ {[%clk 0:00:16]}  Kh8 {[%clk 0:00:01]} 48. Qe6 {[%clk 0:00:13]}  Kh7 {[%clk 0:00:01]} 49. h4 {[%clk 0:00:13]} 1-0


[Site "https://www.chess.com"]

[Event "Titled Tuesday Blitz August 17 2021"]
[White "Yanchenko, Roman"]
[Black "Agibileg, Uurtsaikh"]
[WhiteFideId "4137329"]
[BlackFideId "4901606"]
[WhiteElo "2514"]
[BlackElo "2150"]
[Result "0-1"]
[Round "02"]
[TimeControl "180+1"]
[Date "2021.08.17"]
[WhiteClock "0:00:06"]
[BlackClock "0:00:10"]

1. d4 {[%clk 0:03:00]}  Nf6 {[%clk 0:02:59]} 2. c4 {[%clk 0:03:01]}  e6 {[%clk 0:03:00]} 3. Nf3 {[%clk 0:02:57]}  c5 {[%clk 0:03:00]} 4. Nc3 {[%clk 0:02:56]}  cxd4 {[%clk 0:02:58]} 5. Nxd4 {[%clk 0:02:57]}  Nc6 {[%clk 0:02:59]} 6. e3 {[%clk 0:02:56]}  Be7 {[%clk 0:02:56]} 7. Be2 {[%clk 0:02:56]}  O-O {[%clk 0:02:56]} 8. O-O {[%clk 0:02:56]}  d5 {[%clk 0:02:57]} 9. cxd5 {[%clk 0:02:56]}  Nxd5 {[%clk 0:02:58]} 10. Nxc6 {[%clk 0:02:56]}  bxc6 {[%clk 0:02:59]} 11. Qc2 {[%clk 0:02:54]}  Qc7 {[%clk 0:02:50]} 12. Rd1 {[%clk 0:02:52]}  Bd6 {[%clk 0:02:50]} 13. h3 {[%clk 0:02:51]}  Bb7 {[%clk 0:02:44]} 14. Ne4 {[%clk 0:02:49]}  Be7 {[%clk 0:02:41]} 15. b3 {[%clk 0:02:48]}  c5 {[%clk 0:02:40]} 16. Bb2 {[%clk 0:02:46]}  Rac8 {[%clk 0:02:33]} 17. Bf3 {[%clk 0:02:43]}  f5 {[%clk 0:02:24]} 18. Nd2 {[%clk 0:02:35]}  Rfd8 {[%clk 0:02:18]} 19. Nc4 {[%clk 0:02:32]}  Bf6 {[%clk 0:02:09]} 20. Bxf6 {[%clk 0:02:28]}  gxf6 {[%clk 0:02:01]} 21. Qb2 {[%clk 0:02:24]}  Qg7 {[%clk 0:01:56]} 22. Rd2 {[%clk 0:02:14]}  Kh8 {[%clk 0:01:55]} 23. Rad1 {[%clk 0:02:13]}  Rc7 {[%clk 0:01:45]} 24. e4 {[%clk 0:02:00]}  fxe4 {[%clk 0:01:43]} 25. Bxe4 {[%clk 0:02:00]}  Rg8 {[%clk 0:01:42]} 26. g3 {[%clk 0:01:59]}  Qh6 {[%clk 0:01:07]} 27. Nd6 {[%clk 0:01:52]}  Ba8 {[%clk 0:01:06]} 28. Nf5 {[%clk 0:01:49]}  Qg5 {[%clk 0:00:51]} 29. h4 {[%clk 0:01:45]}  Qg6 {[%clk 0:00:48]} 30. Nd6 {[%clk 0:00:48]}  Qh6 {[%clk 0:00:38]} 31. Bxd5 {[%clk 0:00:45]}  Bxd5 {[%clk 0:00:35]} 32. Rxd5 {[%clk 0:00:45]}  exd5 {[%clk 0:00:36]} 33. Rxd5 {[%clk 0:00:45]}  Qxh4 {[%clk 0:00:31]} 34. Nf5 {[%clk 0:00:44]}  Qg5 {[%clk 0:00:29]} 35. Ne3 {[%clk 0:00:42]}  Qg6 {[%clk 0:00:25]} 36. Rf5 {[%clk 0:00:41]}  Rf7 {[%clk 0:00:24]} 37. Rf4 {[%clk 0:00:41]}  Re8 {[%clk 0:00:24]} 38. Ng4 {[%clk 0:00:39]}  Kg7 {[%clk 0:00:21]} 39. Qc1 {[%clk 0:00:32]}  Re4 {[%clk 0:00:20]} 40. Rxe4 {[%clk 0:00:29]}  Qxe4 {[%clk 0:00:20]} 41. Qh6+ {[%clk 0:00:29]}  Kh8 {[%clk 0:00:21]} 42. Qh5 {[%clk 0:00:16]}  Qe1+ {[%clk 0:00:19]} 43. Kh2 {[%clk 0:00:15]}  Qe6 {[%clk 0:00:17]} 44. Nh6 {[%clk 0:00:13]}  Rf8 {[%clk 0:00:16]} 45. Qxc5 {[%clk 0:00:13]}  Re8 {[%clk 0:00:15]} 46. Qh5 {[%clk 0:00:12]}  Kg7 {[%clk 0:00:14]} 47. Nf5+ {[%clk 0:00:12]}  Kh8 {[%clk 0:00:15]} 48. Ne3 {[%clk 0:00:12]}  Re7 {[%clk 0:00:14]} 49. g4 {[%clk 0:00:12]}  Qe5+ {[%clk 0:00:14]} 50. Kg2 {[%clk 0:00:12]}  Qxh5 {[%clk 0:00:14]} 51. gxh5 {[%clk 0:00:13]}  Re5 {[%clk 0:00:15]} 52. Ng4 {[%clk 0:00:13]}  Rxh5 {[%clk 0:00:14]} 53. Nxf6 {[%clk 0:00:13]}  Ra5 {[%clk 0:00:15]} 54. a4 {[%clk 0:00:13]}  Rg5+ {[%clk 0:00:16]} 55. Kf1 {[%clk 0:00:12]}  Rf5 {[%clk 0:00:16]} 56. Ne4 {[%clk 0:00:12]}  Rf3 {[%clk 0:00:16]} 57. Nd2 {[%clk 0:00:12]}  Rc3 {[%clk 0:00:16]} 58. Ke2 {[%clk 0:00:11]}  a5 {[%clk 0:00:15]} 59. Nc4 {[%clk 0:00:10]}  Rxb3 {[%clk 0:00:16]} 60. Nxa5 {[%clk 0:00:11]}  Rb4 {[%clk 0:00:16]} 61. Nc6 {[%clk 0:00:12]}  Rxa4 {[%clk 0:00:17]} 62. Kf3 {[%clk 0:00:12]}  Kg7 {[%clk 0:00:18]} 63. Ne5 {[%clk 0:00:12]}  Kf6 {[%clk 0:00:18]} 64. Ng4+ {[%clk 0:00:12]}  Kg5 {[%clk 0:00:18]} 65. Ne3 {[%clk 0:00:13]}  h5 {[%clk 0:00:18]} 66. Kg2 {[%clk 0:00:14]}  Kf4 {[%clk 0:00:18]} 67. Kh3 {[%clk 0:00:13]}  Ra2 {[%clk 0:00:17]} 68. Ng2+ {[%clk 0:00:12]}  Kg5 {[%clk 0:00:17]} 69. f4+ {[%clk 0:00:11]}  Kf5 {[%clk 0:00:16]} 70. Kg3 {[%clk 0:00:11]}  Ra3+ {[%clk 0:00:13]} 71. Kh4 {[%clk 0:00:11]}  Kg6 {[%clk 0:00:14]} 72. Ne1 {[%clk 0:00:10]}  Re3 {[%clk 0:00:12]} 73. Nc2 {[%clk 0:00:10]}  Rf3 {[%clk 0:00:12]} 74. f5+ {[%clk 0:00:07]}  Rxf5 {[%clk 0:00:12]} 75. Kg3 {[%clk 0:00:08]}  Rg5+ {[%clk 0:00:12]} 76. Kf3 {[%clk 0:00:08]}  h4 {[%clk 0:00:12]} 77. Ne3 {[%clk 0:00:08]}  Kh5 {[%clk 0:00:11]} 78. Nf1 {[%clk 0:00:07]}  h3 {[%clk 0:00:10]} 79. Kf2 {[%clk 0:00:07]}  Kh4 {[%clk 0:00:09]} 80. Kf3 {[%clk 0:00:06]}  Rg2 {[%clk 0:00:08]} 81. Ne3 {[%clk 0:00:05]}  Rg3+ {[%clk 0:00:09]} 82. Kf2 {[%clk 0:00:05]}  Rxe3 {[%clk 0:00:10]} 83. Kxe3 {[%clk 0:00:06]}  h2 {[%clk 0:00:10]} 0-1


[Site "https://www.chess.com"]

[Event "Titled Tuesday Blitz August 17 2021"]
[White "Yilmaz, Mustafa"]
[Black "Kravtsiv, Martyn"]
[WhiteFideId "6302718"]
[BlackFideId "14113147"]
[WhiteElo "2518"]
[BlackElo "2680"]
[Result "0-1"]
[Round "02"]
[TimeControl "180+1"]
[Date "2021.08.17"]
[WhiteClock "0:00:01"]
[BlackClock "0:00:24"]

1. e4 {[%clk 0:03:00]}  e5 {[%clk 0:02:58]} 2. Nf3 {[%clk 0:03:00]}  Nc6 {[%clk 0:02:58]} 3. Bb5 {[%clk 0:03:00]}  a6 {[%clk 0:02:58]} 4. Ba4 {[%clk 0:03:01]}  Nf6 {[%clk 0:02:58]} 5. O-O {[%clk 0:03:01]}  Be7 {[%clk 0:02:57]} 6. Re1 {[%clk 0:03:01]}  b5 {[%clk 0:02:57]} 7. Bb3 {[%clk 0:03:02]}  d6 {[%clk 0:02:57]} 8. c3 {[%clk 0:03:01]}  O-O {[%clk 0:02:57]} 9. h3 {[%clk 0:03:02]}  Bb7 {[%clk 0:02:51]} 10. d4 {[%clk 0:02:59]}  exd4 {[%clk 0:02:51]} 11. cxd4 {[%clk 0:02:57]}  Na5 {[%clk 0:02:51]} 12. Bc2 {[%clk 0:02:56]}  c5 {[%clk 0:02:50]} 13. d5 {[%clk 0:02:56]}  Re8 {[%clk 0:02:48]} 14. Nbd2 {[%clk 0:02:50]}  Bf8 {[%clk 0:02:46]} 15. Nf1 {[%clk 0:02:51]}  g6 {[%clk 0:02:34]} 16. Ng3 {[%clk 0:02:25]}  Bg7 {[%clk 0:02:33]} 17. Bf4 {[%clk 0:02:25]}  Nc4 {[%clk 0:02:28]} 18. Rb1 {[%clk 0:02:20]}  Nd7 {[%clk 0:02:16]} 19. Qc1 {[%clk 0:02:18]}  Nce5 {[%clk 0:02:09]} 20. Nh2 {[%clk 0:02:08]}  c4 {[%clk 0:02:05]} 21. Bh6 {[%clk 0:02:07]}  Nc5 {[%clk 0:01:55]} 22. Bxg7 {[%clk 0:02:06]}  Kxg7 {[%clk 0:01:56]} 23. Ng4 {[%clk 0:01:58]}  Nxg4 {[%clk 0:01:32]} 24. hxg4 {[%clk 0:01:58]}  Bc8 {[%clk 0:01:32]} 25. g5 {[%clk 0:01:52]}  f6 {[%clk 0:01:24]} 26. gxf6+ {[%clk 0:01:37]}  Qxf6 {[%clk 0:01:25]} 27. b3 {[%clk 0:01:33]}  cxb3 {[%clk 0:01:18]} 28. axb3 {[%clk 0:01:31]}  b4 {[%clk 0:01:18]} 29. Re3 {[%clk 0:00:49]}  Bg4 {[%clk 0:01:11]} 30. Qd2 {[%clk 0:00:49]}  a5 {[%clk 0:01:10]} 31. Bd1 {[%clk 0:00:50]}  Bd7 {[%clk 0:01:05]} 32. Rc1 {[%clk 0:00:37]}  Rac8 {[%clk 0:01:00]} 33. f3 {[%clk 0:00:26]}  Qg5 {[%clk 0:00:53]} 34. Kf2 {[%clk 0:00:20]}  Kg8 {[%clk 0:00:46]} 35. Ra1 {[%clk 0:00:14]}  Ra8 {[%clk 0:00:44]} 36. Rc1 {[%clk 0:00:11]}  h5 {[%clk 0:00:43]} 37. Nf1 {[%clk 0:00:11]}  Rf8 {[%clk 0:00:43]} 38. Kg1 {[%clk 0:00:10]}  h4 {[%clk 0:00:42]} 39. Kh2 {[%clk 0:00:10]}  Qe5+ {[%clk 0:00:41]} 40. Kh1 {[%clk 0:00:10]}  Rf7 {[%clk 0:00:39]} 41. Qe1 {[%clk 0:00:06]}  g5 {[%clk 0:00:39]} 42. Qd2 {[%clk 0:00:05]}  Rh7 {[%clk 0:00:39]} 43. Nh2 {[%clk 0:00:05]}  Rf7 {[%clk 0:00:38]} 44. Re1 {[%clk 0:00:05]}  Kg7 {[%clk 0:00:36]} 45. Qe3 {[%clk 0:00:05]}  Qf4 {[%clk 0:00:36]} 46. Qxf4 {[%clk 0:00:05]}  gxf4 {[%clk 0:00:35]} 47. Ra1 {[%clk 0:00:06]}  Nd3 {[%clk 0:00:35]} 48. Re2 {[%clk 0:00:04]}  Bb5 {[%clk 0:00:34]} 49. Rea2 {[%clk 0:00:04]}  a4 {[%clk 0:00:33]} 50. bxa4 {[%clk 0:00:04]}  Bc4 {[%clk 0:00:33]} 51. Rd2 {[%clk 0:00:04]}  Nc5 {[%clk 0:00:31]} 52. Rb1 {[%clk 0:00:03]}  b3 {[%clk 0:00:31]} 53. Rd4 {[%clk 0:00:03]}  Rxa4 {[%clk 0:00:30]} 54. Ng4 {[%clk 0:00:03]}  Rfa7 {[%clk 0:00:29]} 55. e5 {[%clk 0:00:03]}  Ra1 {[%clk 0:00:29]} 56. Rxa1 {[%clk 0:00:02]}  Rxa1 {[%clk 0:00:30]} 57. Kh2 {[%clk 0:00:02]}  b2 {[%clk 0:00:30]} 58. Bc2 {[%clk 0:00:03]}  Bb3 {[%clk 0:00:28]} 59. Bf5 {[%clk 0:00:03]}  Rd1 {[%clk 0:00:28]} 60. Rb4 {[%clk 0:00:02]}  Bxd5 {[%clk 0:00:27]} 61. exd6 {[%clk 0:00:02]}  Bb3 {[%clk 0:00:25]} 62. d7 {[%clk 0:00:02]}  Rxd7 {[%clk 0:00:25]} 63. Ne5 {[%clk 0:00:01]}  Rd1 {[%clk 0:00:24]} 0-1


[Site "https://www.chess.com"]

[Event "Titled Tuesday Blitz August 17 2021"]
[White "Yoo, Christopher Woojin"]
[Black "Giroyan, Gary"]
[WhiteFideId "30909694"]
[BlackFideId "680281"]
[WhiteElo "2105"]
[BlackElo "2420"]
[Result "1-0"]
[Round "02"]
[TimeControl "180+1"]
[Date "2021.08.17"]
[WhiteClock "0:00:56"]
[BlackClock "0:00:11"]

1. e4 {[%clk 0:02:47]}  c5 {[%clk 0:02:56]} 2. Nf3 {[%clk 0:02:47]}  d6 {[%clk 0:02:56]} 3. Nc3 {[%clk 0:02:45]}  e6 {[%clk 0:02:54]} 4. g3 {[%clk 0:02:43]}  a6 {[%clk 0:02:50]} 5. Bg2 {[%clk 0:02:42]}  b5 {[%clk 0:02:51]} 6. O-O {[%clk 0:02:42]}  Bb7 {[%clk 0:02:51]} 7. d4 {[%clk 0:02:39]}  Be7 {[%clk 0:02:28]} 8. e5 {[%clk 0:02:19]}  cxd4 {[%clk 0:02:25]} 9. exd6 {[%clk 0:02:15]}  dxc3 {[%clk 0:01:55]} 10. dxe7 {[%clk 0:02:14]}  Qxd1 {[%clk 0:01:56]} 11. Rxd1 {[%clk 0:02:14]}  Nxe7 {[%clk 0:01:57]} 12. bxc3 {[%clk 0:02:12]}  Nd5 {[%clk 0:01:57]} 13. c4 {[%clk 0:01:56]}  bxc4 {[%clk 0:01:56]} 14. Rb1 {[%clk 0:01:56]}  Bc8 {[%clk 0:01:15]} 15. Ba3 {[%clk 0:01:43]}  Nc6 {[%clk 0:01:10]} 16. Nd2 {[%clk 0:01:38]}  Nd4 {[%clk 0:00:41]} 17. Nxc4 {[%clk 0:01:35]}  Ne2+ {[%clk 0:00:34]} 18. Kh1 {[%clk 0:01:26]}  Nec3 {[%clk 0:00:35]} 19. Nd6+ {[%clk 0:01:10]}  Kd7 {[%clk 0:00:34]} 20. Nxf7 {[%clk 0:01:09]}  Re8 {[%clk 0:00:21]} 21. Nd6 {[%clk 0:01:05]}  Rf8 {[%clk 0:00:13]} 22. Ne4 {[%clk 0:00:57]}  Nxe4 {[%clk 0:00:12]} 23. Bxe4 {[%clk 0:00:57]}  Rxf2 {[%clk 0:00:12]} 24. c4 {[%clk 0:00:57]}  Rxa2 {[%clk 0:00:11]} 25. cxd5 {[%clk 0:00:56]} 1-0


[Site "https://www.chess.com"]